fUST/lending_fUST_20250801
["ID","MTS","AMOUNT","RATE_DAILY","PERIOD"]
[376493926,1753996248352,-460.0,0.00020273,2]
[376493928,1753996248362,-460.0,0.00020273,2]
[376493930,1753996248372,-595.672676,0.00020273,2]
[376493932,1753996248381,-460.0,0.00020273,2]
[376493934,1753996248391,-460.0,0.00020273,2]
[376493936,1753996248400,-460.0,0.00020273,2]
[376493938,1753996248410,-460.0,0.00020273,2]
[376493940,1753996248420,-617.03,0.00020273,2]
[376493942,1753996248429,-1076.94,0.00020273,2]
[376493944,1753996248439,-460.0,0.00020273,2]
[376493946,1753996248449,-705.22,0.00020273,2]
[376493948,1753996248460,-739.04,0.00020273,2]
[376493950,1753996248470,-460.0,0.00020273,2]
[376493952,1753996248480,-534.81,0.00020273,2]
[376493954,1753996248492,-828.67,0.00020273,2]
[376493956,1753996248502,-460.0,0.00020273,2]
[376493958,1753996248514,-3320.35,0.00020273,2]
[376493960,1753996248524,-849.65,0.00020273,2]
[376493962,1753996248534,-460.0,0.00020273,2]
[376493964,1753996248544,-460.0,0.00020273,2]
[376493966,1753996248553,-4583.99,0.00020273,2]
[376493968,1753996248563,-460.0,0.00020273,2]
[376493970,1753996248573,-757.88,0.00020273,2]
[376493972,1753996248583,-7174.05,0.00020273,2]
[376493974,1753996248593,-1291.27,0.00020273,2]
[376493976,1753996248602,-1941.2,0.00020273,2]
[376493978,1753996248612,-487.78,0.00020273,2]
[376493980,1753996248622,-670.4,0.00020273,2]
[376493982,1753996248632,-460.0,0.00020273,2]
[376493984,1753996248641,-2211.28,0.00020273,2]
[376493986,1753996248650,-918.72,0.00020273,2]
[376493988,1753996248659,-850.78,0.00020273,2]
[376493990,1753996248668,-460.0,0.00020273,2]
[376493992,1753996248678,-3289.96,0.00020273,2]
[376493994,1753996248688,-1786.07,0.00020273,2]
[376493996,1753996248698,-460.0,0.00020273,2]
[376493998,1753996248711,-460.0,0.00020273,2]
[376494000,1753996248720,-460.0,0.00020273,2]
[376494001,1753996248730,-482.59,0.00020273,2]
[376494003,1753996248740,-1393.56,0.00020273,2]
[376494005,1753996248753,-460.0,0.00020273,2]
[376494007,1753996248763,-460.0,0.00020273,2]
[376494009,1753996248773,-1233.99,0.00020273,2]
[376494011,1753996248783,-2286.64,0.00020273,2]
[376494013,1753996248792,-646.71,0.00020273,2]
[376494015,1753996248802,-624.55,0.00020273,2]
[376494017,1753996248811,-545.62,0.00020273,2]
[376494019,1753996248820,-845.59,0.00020273,2]
[376494021,1753996248831,-741.91,0.00020273,2]
[376494022,1753996248840,-460.0,0.00020273,2]
[376494024,1753996248849,-460.0,0.00020273,2]
[376494026,1753996248859,-460.0,0.00020273,2]
[376494028,1753996248871,-460.0,0.00020273,2]
[376494030,1753996248880,-460.0,0.00020273,2]
[376494032,1753996248890,-697.15,0.00020273,2]
[376494034,1753996248900,-460.0,0.00020273,2]
[376494036,1753996248910,-492.54,0.00020273,2]
[376494038,1753996248921,-522.14,0.00020273,2]
[376494040,1753996248930,-2412.78,0.00020273,2]
[376494042,1753996248939,-861.05,0.00020273,2]
[376494044,1753996248951,-281.16997883,0.00020273,2]
[376494046,1753996248962,-460.0,0.00020273,2]
[376494048,1753996248972,-460.0,0.00020273,2]
[376494050,1753996248982,-460.0,0.00020273,2]
[376494052,1753996248991,-460.0,0.00020273,2]
[376494053,1753996249001,-460.0,0.00020273,2]
[376494055,1753996249010,-2496.28,0.00020273,2]
[376494057,1753996249020,-460.0,0.00020273,2]
[376494059,1753996249030,-781.0,0.00020273,2]
[376494061,1753996249041,-460.0,0.00020273,2]
[376494063,1753996249051,-1245.4,0.00020273,2]
[376494065,1753996249061,-954.08,0.00020273,2]
[376494067,1753996249070,-586.68,0.00020273,2]
[376494069,1753996249080,-735.27,0.00020273,2]
[376494071,1753996249090,-807.17,0.00020273,2]
[376494073,1753996249100,-803.62,0.00020273,2]
[376494075,1753996249110,-460.0,0.00020273,2]
[376494077,1753996249120,-460.0,0.00020273,2]
[376494079,1753996249130,-7811.56,0.00020273,2]
[376494081,1753996249139,-2081.66,0.00020273,2]
[376494083,1753996249149,-460.0,0.00020273,2]
[376494085,1753996249159,-657.88,0.00020273,2]
[376494087,1753996249168,-460.0,0.00020273,2]
[376494089,1753996249177,-283.36798196,0.00020273,2]
[376494116,1753996249441,-567.25201804,0.00020273,2]
[376494118,1753996249450,-2765.89,0.00020273,2]
[376494120,1753996249460,-267.63805044,0.00020273,2]
[376494122,1753996249472,-192.36194956,0.00020273,2]
[376494124,1753996249481,-151.0,0.000203,4]
[376494126,1753996249491,-785.92942491,0.0002031,2]
[376494128,1753996249500,-151.0,0.00020313,2]
[376494130,1753996249509,-151.0,0.00020313,2]
[376494132,1753996249519,-460.0,0.00020313,2]
[376494134,1753996249528,-965.72326798,0.00020417,3]
[376494136,1753996249537,-160.0,0.0002045,2]
[376494138,1753996249547,-44.55985241,0.000205,3]
[376494153,1753996249685,-106.44014759,0.000205,3]
[376494155,1753996249694,-1050.1,0.00020508,3]
[376494157,1753996249703,-151.0,0.00020546,2]
[376494159,1753996249713,-151.0,0.00020547,2]
[376494161,1753996249722,-85.67013468,0.00020547,2]
[376494163,1753996249734,-65.32986532,0.00020547,2]
[376494165,1753996249744,-151.0,0.00020547,2]
[376494167,1753996249753,-151.0,0.00020547,2]
[376494169,1753996249762,-460.0,0.00020547,2]
[376494171,1753996249772,-336.91920063,0.00020547,2]
[376494176,1753996249811,-460.0,0.00020547,2]
[376494178,1753996249821,-460.0,0.00020547,2]
[376494180,1753996249830,-818.99,0.00020547,2]
[376494182,1753996249840,-460.0,0.00020547,2]
[376494184,1753996249850,-566.08,0.00020547,2]
[376494186,1753996249859,-460.0,0.00020547,2]
[376494188,1753996249872,-460.0,0.00020547,2]
[376494190,1753996249881,-460.0,0.00020547,2]
[376494192,1753996249890,-460.0,0.00020547,2]
[376494194,1753996249900,-460.0,0.00020547,2]
[376494196,1753996249911,-460.0,0.00020547,2]
[376494198,1753996249920,-460.0,0.00020547,2]
[376494200,1753996249928,-511.71,0.00020547,2]
[376494202,1753996249938,-460.0,0.00020547,2]
[376494204,1753996249947,-460.0,0.00020547,2]
[376494205,1753996249957,-460.0,0.00020547,2]
[376494207,1753996249966,-463.54,0.00020547,2]
[376494208,1753996249975,-2393.77,0.00020547,2]
[376494209,1753996249984,-460.0,0.00020547,2]
[376494210,1753996249994,-560.47,0.00020547,2]
[376494211,1753996250003,-460.0,0.00020547,2]
[376494212,1753996250012,-460.0,0.00020547,2]
[376494213,1753996250021,-460.0,0.00020547,2]
[376494214,1753996250031,-460.0,0.00020547,2]
[376494215,1753996250040,-460.0,0.00020547,2]
[376494216,1753996250049,-460.0,0.00020547,2]
[376494217,1753996250058,-617.03,0.00020547,2]
[376494218,1753996250067,-1076.94,0.00020547,2]
[376494219,1753996250077,-460.0,0.00020547,2]
[376494220,1753996250086,-705.22,0.00020547,2]
[376494221,1753996250095,-739.04,0.00020547,2]
[376494222,1753996250104,-460.0,0.00020547,2]
[376494223,1753996250113,-534.81,0.00020547,2]
[376494224,1753996250122,-828.67,0.00020547,2]
[376494225,1753996250131,-460.0,0.00020547,2]
[376494226,1753996250140,-3320.35,0.00020547,2]
[376494227,1753996250150,-849.65,0.00020547,2]
[376494228,1753996250159,-460.0,0.00020547,2]
[376494229,1753996250168,-460.0,0.00020547,2]
[376494230,1753996250177,-4583.99,0.00020547,2]
[376494231,1753996250186,-460.0,0.00020547,2]
[376494232,1753996250195,-757.88,0.00020547,2]
[376494234,1753996250204,-3795.11976631,0.00020547,2]
[376494802,1753996276655,1475.0,0.000274,120]
[376494805,1753996530962,2000.0,0.000192,14]
[376494808,1753996635901,8457.170005,0.00018134,2]
[376494809,1753996635928,16442.829995,0.00018134,2]
[376494812,1753996718739,3000.0,0.0001878,2]
[376494813,1753996853097,919.24914697,0.0001878,2]
[376494817,1753996920040,350.195776,0.00013699,2]
[376494821,1753996973652,205.304832,0.00027397,120]
[376494824,1753997268233,1082.75505208,0.00018,2]
[376494829,1753997321051,177.26341192,0.0002739,120]
[376494906,1753997432710,-210.61869395,0.000189,2]
[376494909,1753997432720,-1000.0,0.00019009,2]
[376494911,1753997432733,-116.39383086,0.00019077,2]
[376494916,1753997432771,-1083.60616914,0.00019077,2]
[376494919,1753997432780,-261.80985838,0.00019078,2]
[376494921,1753997432789,-1537.54153402,0.00019078,2]
[376494923,1753997432800,-844.03561565,0.00019078,2]
[376494926,1753997432811,-18088.09584143,0.00019078,2]
[376494928,1753997432821,-500.0,0.00019173,2]
[376494930,1753997432830,-460.0,0.00019178,2]
[376494932,1753997432838,-467.31895115,0.00019178,2]
[376494934,1753997432848,-460.0,0.00019178,2]
[376494936,1753997432857,-362.79643932,0.00019178,2]
[376495088,1753997439479,-97.20356068,0.00019178,2]
[376495090,1753997439489,-460.0,0.00019178,2]
[376495093,1753997439499,-460.0,0.00019178,2]
[376495095,1753997439509,-460.0,0.00019178,2]
[376495097,1753997439518,-460.0,0.00019178,2]
[376495099,1753997439527,-152.53248083,0.00019178,2]
[376495101,1753997439536,-250.13414532,0.00019178,2]
[376495102,1753997439544,-201.72492483,0.00019178,2]
[376495104,1753997439554,-460.0,0.00019178,2]
[376495107,1753997439563,-468.76961872,0.00019178,2]
[376495108,1753997439573,-460.0,0.00019178,2]
[376495110,1753997439588,-460.0,0.00019178,2]
[376495112,1753997439602,-785.77,0.00019178,2]
[376495115,1753997439611,-460.0,0.00019178,2]
[376495117,1753997439620,-460.0,0.00019178,2]
[376495119,1753997439630,-1337.44,0.00019178,2]
[376495120,1753997439639,-460.0,0.00019178,2]
[376495122,1753997439647,-460.0,0.00019178,2]
[376495124,1753997439656,-460.0,0.00019178,2]
[376495126,1753997439666,-460.0,0.00019178,2]
[376495128,1753997439675,-460.0,0.00019178,2]
[376495130,1753997439684,-460.0,0.00019178,2]
[376495133,1753997439695,-460.0,0.00019178,2]
[376495135,1753997439704,-460.0,0.00019178,2]
[376495137,1753997439713,-500.0,0.00019178,2]
[376495139,1753997439722,-460.0,0.00019178,2]
[376495141,1753997439731,-460.0,0.00019178,2]
[376495143,1753997439740,-255.46360494,0.00019178,2]
[376495214,1753997440590,-204.53639506,0.00019178,2]
[376495216,1753997440600,-500.0,0.00019178,2]
[376495218,1753997440609,-500.0,0.00019178,2]
[376495220,1753997440618,-500.0,0.00019178,2]
[376495222,1753997440627,-460.0,0.00019178,2]
[376495224,1753997440636,-500.0,0.00019178,2]
[376495226,1753997440646,-500.0,0.00019178,2]
[376495228,1753997440655,-500.0,0.00019178,2]
[376495230,1753997440664,-460.0,0.00019178,2]
[376495232,1753997440673,-151.0,0.00019178,2]
[376495234,1753997440682,-1851.3,0.00019178,2]
[376495236,1753997440691,-202.87319312,0.00019178,2]
[376495238,1753997440700,-460.0,0.00019178,2]
[376495241,1753997440709,-460.0,0.00019178,2]
[376495243,1753997440719,-460.0,0.00019178,2]
[376495245,1753997440727,-443.40338464,0.00019178,2]
[376495247,1753997440737,-460.0,0.00019178,2]
[376495249,1753997440746,-460.0,0.00019178,2]
[376495251,1753997440756,-470.86,0.00019178,2]
[376495253,1753997440765,-460.0,0.00019178,2]
[376495255,1753997440775,-460.0,0.00019178,2]
[376495257,1753997440784,-455.44551388,0.00019178,2]
[376495259,1753997440793,-460.0,0.00019178,2]
[376495261,1753997440802,-2877.66,0.00019178,2]
[376495263,1753997440811,-501.05,0.00019178,2]
[376495265,1753997440821,-460.0,0.00019178,2]
[376495267,1753997440830,-460.0,0.00019178,2]
[376495269,1753997440840,-460.0,0.00019178,2]
[376495271,1753997440849,-460.0,0.00019178,2]
[376495273,1753997440858,-460.0,0.00019178,2]
[376495275,1753997440867,-460.0,0.00019178,2]
[376495277,1753997440876,-151.4272048,0.00019178,2]
[376495279,1753997440886,-151.0,0.00019178,2]
[376495299,1753997441056,-623.0,0.00019178,2]
[376495301,1753997441065,-460.0,0.00019178,2]
[376495303,1753997441074,-673.3,0.00019178,2]
[376495305,1753997441083,-151.0,0.00019178,2]
[376495307,1753997441093,-460.0,0.00019178,2]
[376495309,1753997441102,-151.0,0.00019178,2]
[376495311,1753997441111,-460.0,0.00019178,2]
[376495313,1753997441121,-526.81,0.00019178,2]
[376495315,1753997441130,-151.0,0.00019178,2]
[376495317,1753997441139,-151.0,0.00019178,2]
[376495319,1753997441148,-670.9,0.00019178,2]
[376495321,1753997441157,-151.0,0.00019178,2]
[376495323,1753997441166,-460.0,0.00019178,2]
[376495325,1753997441175,-460.0,0.00019178,2]
[376495327,1753997441184,-1046.58,0.00019178,2]
[376495329,1753997441195,-656.03,0.00019178,2]
[376495331,1753997441207,-460.0,0.00019178,2]
[376495332,1753997441216,-460.0,0.00019178,2]
[376495334,1753997441225,-464.46,0.00019178,2]
[376495336,1753997441235,-460.0,0.00019178,2]
[376495338,1753997441244,-784.42,0.00019178,2]
[376495341,1753997441253,-460.0,0.00019178,2]
[376495342,1753997441262,-307.59504346,0.00019178,2]
[376495345,1753997441273,-768.47,0.00019178,2]
[376495347,1753997441282,-616.66,0.00019178,2]
[376495348,1753997441292,-460.0,0.00019178,2]
[376495350,1753997441301,-460.0,0.00019178,2]
[376495352,1753997441310,-460.0,0.00019178,2]
[376495354,1753997441320,-2452.12,0.00019178,2]
[376495356,1753997441329,-460.0,0.00019178,2]
[376495359,1753997441338,-788.41,0.00019178,2]
[376495360,1753997441347,-460.0,0.00019178,2]
[376495363,1753997441356,-838.47,0.00019178,2]
[376495365,1753997441366,-1756.02,0.00019178,2]
[376495366,1753997441375,-714.99,0.00019178,2]
[376495368,1753997441384,-460.0,0.00019178,2]
[376495370,1753997441394,-460.0,0.00019178,2]
[376495372,1753997441403,-460.0,0.00019178,2]
[376495374,1753997441412,-1162.75,0.00019178,2]
[376495376,1753997441422,-788.53,0.00019178,2]
[376495378,1753997441431,-645.74,0.00019178,2]
[376495380,1753997441440,-1528.97,0.00019178,2]
[376495382,1753997441449,-466.25226925,0.00019178,2]
[376495384,1753997441459,-2085.67,0.00019178,2]
[376495386,1753997441468,-2978.49,0.00019178,2]
[376495388,1753997441477,-460.0,0.00019178,2]
[376495390,1753997441486,-460.0,0.00019178,2]
[376495392,1753997441495,-460.0,0.00019178,2]
[376495394,1753997441505,-531.15,0.00019178,2]
[376495396,1753997441514,-1091.91,0.00019178,2]
[376495398,1753997441523,-460.0,0.00019178,2]
[376495400,1753997441533,-460.0,0.00019178,2]
[376495402,1753997441542,-460.0,0.00019178,2]
[376495404,1753997441551,-460.0,0.00019178,2]
[376495406,1753997441560,-460.0,0.00019178,2]
[376495408,1753997441571,-460.0,0.00019178,2]
[376495410,1753997441580,-2004.78,0.00019178,2]
[376495413,1753997441591,-513.6,0.00019178,2]
[376495415,1753997441600,-151.0,0.00019178,2]
[376495417,1753997441610,-500.0,0.00019178,2]
[376495419,1753997441621,-500.0,0.00019178,2]
[376495421,1753997441630,-151.0,0.00019178,2]
[376495423,1753997441639,-521.69,0.00019178,2]
[376495424,1753997441648,-618.84,0.00019178,2]
[376495427,1753997441663,-151.0,0.00019178,2]
[376495429,1753997441672,-951.82,0.00019178,2]
[376495431,1753997441682,-702.35,0.00019178,2]
[376495433,1753997441692,-254.0903166,0.00019178,2]
[376495434,1753997441701,-460.0,0.00019178,2]
[376495437,1753997441711,-697.09,0.00019178,2]
[376495438,1753997441720,-7233.43,0.00019178,2]
[376495440,1753997441729,-460.0,0.00019178,2]
[376495443,1753997441738,-2158.68,0.00019178,2]
[376495445,1753997441748,-863.67,0.00019178,2]
[376495447,1753997441757,-460.0,0.00019178,2]
[376495449,1753997441766,-540.0,0.00019178,2]
[376495451,1753997441776,-460.0,0.00019178,2]
[376495453,1753997441785,-20.37283834,0.00019178,2]
[376495455,1753997441799,-450.87716166,0.00019178,2]
[376495457,1753997441808,-1161.63,0.00019178,2]
[376495459,1753997441817,-460.0,0.00019178,2]
[376495461,1753997441827,-151.0,0.00019178,2]
[376495463,1753997441836,-151.0,0.00019178,2]
[376495465,1753997441845,-796.67,0.00019178,2]
[376495467,1753997441854,-151.0,0.00019178,2]
[376495469,1753997441864,-460.0,0.00019178,2]
[376495471,1753997441872,-151.0,0.00019178,2]
[376495473,1753997441881,-460.0,0.00019178,2]
[376495475,1753997441890,-500.0,0.00019178,2]
[376495477,1753997441899,-733.29,0.00019178,2]
[376495479,1753997441908,-460.0,0.00019178,2]
[376495481,1753997441917,-460.0,0.00019178,2]
[376495483,1753997441926,-460.0,0.00019178,2]
[376495485,1753997441935,-6814.54,0.00019178,2]
[376495487,1753997441944,-1104.06,0.00019178,2]
[376495489,1753997441953,-460.0,0.00019178,2]
[376495491,1753997441962,-460.0,0.00019178,2]
[376495493,1753997441971,-751.2,0.00019178,2]
[376495495,1753997441980,-460.0,0.00019178,2]
[376495497,1753997441989,-460.0,0.00019178,2]
[376495499,1753997441998,-460.0,0.00019178,2]
[376495501,1753997442009,-613.82,0.00019178,2]
[376495503,1753997442020,-460.0,0.00019178,2]
[376495505,1753997442030,-460.0,0.00019178,2]
[376495507,1753997442040,-2956.44,0.00019178,2]
[376495509,1753997442049,-460.0,0.00019178,2]
[376495511,1753997442058,-460.0,0.00019178,2]
[376495513,1753997442068,-4091.98,0.00019178,2]
[376495515,1753997442077,-1943.42,0.00019178,2]
[376495517,1753997442086,-460.0,0.00019178,2]
[376495519,1753997442095,-163.917862,0.00019178,2]
[376495521,1753997442105,-387.22974584,0.00019352,2]
[376495523,1753997442114,-500.0,0.00019451,2]
[376495525,1753997442123,-500.0,0.00019451,2]
[376495527,1753997442135,-500.0,0.00019451,2]
[376495529,1753997442144,-500.0,0.00019451,2]
[376495531,1753997442154,-617.66335404,0.00019451,2]
[376495533,1753997442163,-500.0,0.00019451,2]
[376495535,1753997442172,-588.5512123,0.00019451,2]
[376495537,1753997442181,-500.0,0.00019451,2]
[376495539,1753997442190,-167.21160255,0.00019451,2]
[376495541,1753997442203,-500.0,0.00019451,2]
[376495543,1753997442212,-500.0,0.00019451,2]
[376495545,1753997442222,-500.0,0.00019451,2]
[376495547,1753997442231,-500.0,0.00019451,2]
[376495549,1753997442240,-500.0,0.00019451,2]
[376495551,1753997442250,-500.0,0.00019451,2]
[376495553,1753997442260,-282.14093429,0.00019451,2]
[376495555,1753997442269,-500.0,0.00019451,2]
[376495557,1753997442279,-500.0,0.00019451,2]
[376495559,1753997442289,-500.0,0.00019451,2]
[376495561,1753997442299,-500.0,0.00019451,2]
[376495563,1753997442308,-500.0,0.00019451,2]
[376495565,1753997442317,-500.0,0.00019451,2]
[376495567,1753997442326,-500.0,0.00019451,2]
[376495569,1753997442335,-151.0,0.00019452,2]
[376495571,1753997442345,-189.72464462,0.00019452,2]
[376495573,1753997442354,-623.0,0.00019452,2]
[376495575,1753997442363,-198.0,0.00019452,2]
[376495577,1753997442372,-296.27567347,0.00019452,2]
[376495579,1753997442381,-198.0,0.00019452,2]
[376495581,1753997442390,-198.0,0.00019452,2]
[376495583,1753997442399,-151.0,0.00019452,2]
[376495585,1753997442408,-151.0,0.00019452,2]
[376495587,1753997442418,-500.0,0.00019452,2]
[376495589,1753997442428,-460.0,0.00019452,2]
[376495591,1753997442438,-460.0,0.00019452,2]
[376495593,1753997442448,-513.6095809,0.00019452,2]
[376495595,1753997442457,-785.77,0.00019452,2]
[376495597,1753997442466,-460.0,0.00019452,2]
[376495599,1753997442476,-1337.44,0.00019452,2]
[376495601,1753997442485,-460.0,0.00019452,2]
[376495603,1753997442495,-460.0,0.00019452,2]
[376495605,1753997442505,-460.0,0.00019452,2]
[376495607,1753997442514,-460.0,0.00019452,2]
[376495609,1753997442523,-460.0,0.00019452,2]
[376495611,1753997442533,-460.0,0.00019452,2]
[376495613,1753997442542,-460.0,0.00019452,2]
[376495615,1753997442551,-460.0,0.00019452,2]
[376495617,1753997442559,-460.0,0.00019452,2]
[376495619,1753997442569,-460.0,0.00019452,2]
[376495621,1753997442578,-460.0,0.00019452,2]
[376495623,1753997442587,-1851.3,0.00019452,2]
[376495625,1753997442596,-460.0,0.00019452,2]
[376495627,1753997442606,-460.0,0.00019452,2]
[376495629,1753997442615,-460.0,0.00019452,2]
[376495631,1753997442624,-208.38750257,0.00019452,2]
[376495633,1753997442633,-470.86,0.00019452,2]
[376495635,1753997442643,-460.0,0.00019452,2]
[376495637,1753997442652,-428.58257914,0.00019452,2]
[376495639,1753997442661,-460.0,0.00019452,2]
[376495641,1753997442670,-2762.93147962,0.00019452,2]
[376495715,1753997443484,-114.72852038,0.00019452,2]
[376495716,1753997443494,-501.05,0.00019452,2]
[376495718,1753997443503,-460.0,0.00019452,2]
[376495720,1753997443515,-460.0,0.00019452,2]
[376495722,1753997443524,-511.28780456,0.00019452,2]
[376495723,1753997443533,-460.0,0.00019452,2]
[376495725,1753997443543,-460.0,0.00019452,2]
[376495727,1753997443552,-673.3,0.00019452,2]
[376495729,1753997443562,-460.0,0.00019452,2]
[376495731,1753997443571,-526.81,0.00019452,2]
[376495733,1753997443580,-670.9,0.00019452,2]
[376495735,1753997443589,-1046.58,0.00019452,2]
[376495738,1753997443598,-656.03,0.00019452,2]
[376495740,1753997443607,-460.0,0.00019452,2]
[376495742,1753997443616,-464.46,0.00019452,2]
[376495744,1753997443625,-320.73697622,0.00019452,2]
[376503797,1753997677178,24900.0,0.00018316,2]
[376503799,1753997952490,1000.0,0.00018359,2]
[376503800,1753998024016,205.304832,0.00027397,120]
[376503801,1753998031032,-2000.0,0.000265,60]
[376503802,1753998031220,-8000.0,0.00026508,60]
[376503803,1753998097077,351.55349,0.00013699,2]
[376503805,1753998123348,442.9643362,0.00017886,2]
[376503806,1753998139822,635.34788395,0.00017886,2]
[376503807,1753998141507,2541.39153578,0.00017886,2]
[376503808,1753998143353,5712.41282455,0.00017886,2]
[376503809,1753998228208,1000.0,0.00018103,2]
[376503810,1753998451394,652.48875274,0.00017886,2]
[376503856,1753998632798,-300.0,0.00019077,2]
[376503906,1753998633311,-1200.0,0.00019077,2]
[376503907,1753998633321,-298.68720302,0.00019078,2]
[376503908,1753998633330,-1306.38561461,0.00019078,2]
[376504033,1753998639686,-11244.90826989,0.00019078,2]
[376504061,1753998640787,-822.5999998,0.00019078,2]
[376504063,1753998640799,-7755.49483151,0.00019078,2]
[376504065,1753998640808,-460.0,0.00019178,2]
[376504067,1753998640817,-485.37018886,0.00019178,2]
[376504069,1753998640826,-460.0,0.00019178,2]
[376504071,1753998640836,-460.0,0.00019178,2]
[376504073,1753998640846,-460.0,0.00019178,2]
[376504075,1753998640856,-460.0,0.00019178,2]
[376504077,1753998640865,-460.0,0.00019178,2]
[376504079,1753998640874,-555.41649974,0.00019178,2]
[376504081,1753998640885,-460.0,0.00019178,2]
[376504083,1753998640895,-489.12,0.00019178,2]
[376504085,1753998640904,-460.0,0.00019178,2]
[376504088,1753998640914,-460.0,0.00019178,2]
[376504090,1753998640923,-460.0,0.00019178,2]
[376504092,1753998640932,-460.0,0.00019178,2]
[376504094,1753998640941,-460.0,0.00019178,2]
[376504096,1753998640950,-464.46344439,0.00019178,2]
[376504098,1753998640959,-499.61,0.00019178,2]
[376504099,1753998640969,-514.08,0.00019178,2]
[376504102,1753998640979,-460.0,0.00019178,2]
[376504104,1753998640988,-460.0,0.00019178,2]
[376504106,1753998640997,-257.47339977,0.00019178,2]
[376504108,1753998641006,-460.0,0.00019178,2]
[376504110,1753998641014,-471.66945832,0.00019178,2]
[376504112,1753998641026,-500.0,0.00019178,2]
[376504114,1753998641037,-460.0,0.00019178,2]
[376504116,1753998641046,-460.0,0.00019178,2]
[376504118,1753998641058,-460.0,0.00019178,2]
[376504120,1753998641067,-460.0,0.00019178,2]
[376504122,1753998641076,-460.0,0.00019178,2]
[376504124,1753998641085,-274.52226462,0.00019178,2]
[376504126,1753998641095,-151.56501588,0.00019178,2]
[376504141,1753998641223,-308.43498412,0.00019178,2]
[376504143,1753998641233,-2683.8,0.00019178,2]
[376504145,1753998641242,-460.0,0.00019178,2]
[376504147,1753998641252,-500.0,0.00019178,2]
[376504149,1753998641262,-460.0,0.00019178,2]
[376504151,1753998641271,-500.0,0.00019178,2]
[376504153,1753998641281,-500.0,0.00019178,2]
[376504155,1753998641290,-500.0,0.00019178,2]
[376504157,1753998641299,-500.0,0.00019178,2]
[376504159,1753998641309,-578.62,0.00019178,2]
[376504161,1753998641318,-460.0,0.00019178,2]
[376504163,1753998641327,-323.33328266,0.00019178,2]
[376504165,1753998641336,-484.01,0.00019178,2]
[376504167,1753998641346,-460.0,0.00019178,2]
[376504169,1753998641356,-460.0,0.00019178,2]
[376504171,1753998641365,-460.0,0.00019178,2]
[376504173,1753998641374,-460.0,0.00019178,2]
[376504175,1753998641383,-1109.22,0.00019178,2]
[376504177,1753998641392,-460.0,0.00019178,2]
[376504179,1753998641401,-460.0,0.00019178,2]
[376504182,1753998641411,-460.0,0.00019178,2]
[376504184,1753998641420,-542.97,0.00019178,2]
[376504186,1753998641429,-460.0,0.00019178,2]
[376504188,1753998641438,-460.0,0.00019178,2]
[376504190,1753998641447,-460.0,0.00019178,2]
[376504209,1753998641626,-460.0,0.00019178,2]
[376504211,1753998641636,-460.0,0.00019178,2]
[376504213,1753998641645,-460.0,0.00019178,2]
[376504216,1753998641655,-239.15031631,0.00019178,2]